fUST/lending_fUST_20240117
["ID","MTS","AMOUNT","RATE_DAILY","PERIOD"]
[311884614,1705488644415,-500.0,0.00022465,2]
[311884615,1705488644424,-500.0,0.00022465,2]
[311884618,1705488644434,-500.0,0.00022465,2]
[311884619,1705488644443,-1360.8,0.00022465,2]
[311884622,1705488644452,-932.46,0.00022465,2]
[311884623,1705488644462,-500.0,0.00022465,2]
[311884625,1705488644471,-500.0,0.00022465,2]
[311884627,1705488644481,-500.0,0.00022465,2]
[311884629,1705488644489,-259.75011283,0.00022465,2]
[311884631,1705488644498,-500.0,0.00022465,2]
[311884633,1705488644507,-538.61,0.00022465,2]
[311884636,1705488644516,-803.33,0.00022465,2]
[311884638,1705488644526,-500.0,0.00022465,2]
[311884640,1705488644535,-1164.63,0.00022465,2]
[311884642,1705488644544,-560.0963264,0.00022465,2]
[311884651,1705488644621,-500.0,0.00022465,2]
[311884653,1705488644631,-500.0,0.00022465,2]
[311884655,1705488644641,-808.54,0.00022465,2]
[311884657,1705488644650,-500.0,0.00022465,2]
[311884659,1705488644659,-500.0,0.00022465,2]
[311884661,1705488644668,-500.0,0.00022465,2]
[311884663,1705488644677,-2268.43,0.00022465,2]
[311884665,1705488644686,-1627.49,0.00022465,2]
[311884667,1705488644696,-3446.15,0.00022465,2]
[311884669,1705488644705,-500.0,0.00022465,2]
[311884671,1705488644714,-627.6,0.00022465,2]
[311884673,1705488644723,-500.0,0.00022465,2]
[311884675,1705488644732,-500.0,0.00022465,2]
[311884677,1705488644741,-500.0,0.00022465,2]
[311884679,1705488644751,-1820.61,0.00022465,2]
[311884681,1705488644760,-500.0,0.00022465,2]
[311884683,1705488644769,-825.48,0.00022465,2]
[311884685,1705488644778,-518.28,0.00022465,2]
[311884687,1705488644787,-500.0,0.00022465,2]
[311884689,1705488644796,-584.66,0.00022465,2]
[311884691,1705488644805,-3033.06,0.00022465,2]
[311884693,1705488644815,-500.0,0.00022465,2]
[311884695,1705488644824,-500.0,0.00022465,2]
[311884697,1705488644833,-500.0,0.00022465,2]
[311884699,1705488644842,-2888.11,0.00022465,2]
[311884701,1705488644852,-500.0,0.00022465,2]
[311884703,1705488644861,-752.21,0.00022465,2]
[311884705,1705488644870,-500.0,0.00022465,2]
[311884707,1705488644879,-500.0,0.00022465,2]
[311884709,1705488644888,-500.0,0.00022465,2]
[311884711,1705488644897,-500.0,0.00022465,2]
[311884713,1705488644906,-769.97,0.00022465,2]
[311884715,1705488644914,-796.42,0.00022465,2]
[311884717,1705488644923,-27548.41,0.00022465,2]
[311884718,1705488644932,-500.0,0.00022465,2]
[311884721,1705488644943,-500.0,0.00022465,2]
[311884722,1705488644954,-500.0,0.00022465,2]
[311884725,1705488644963,-500.0,0.00022465,2]
[311884726,1705488644972,-2140.41,0.00022465,2]
[311884729,1705488644981,-5803.51,0.00022465,2]
[311884730,1705488644992,-500.0,0.00022465,2]
[311884733,1705488645001,-500.0,0.00022465,2]
[311884735,1705488645010,-500.0,0.00022465,2]
[311884736,1705488645019,-500.0,0.00022465,2]
[311884739,1705488645030,-15748.18,0.00022465,2]
[311884741,1705488645039,-801.42,0.00022465,2]
[311884742,1705488645048,-273.11860915,0.00022465,2]
[311884744,1705488645057,-500.0,0.00022465,2]
[311884746,1705488645067,-2592.79,0.00022465,2]
[311884748,1705488645076,-500.0,0.00022465,2]
[311884750,1705488645085,-1547.7,0.00022465,2]
[311884752,1705488645094,-2697.76,0.00022465,2]
[311884754,1705488645102,-500.0,0.00022465,2]
[311884756,1705488645112,-500.0,0.00022465,2]
[311884758,1705488645121,-6556.86,0.00022465,2]
[311884760,1705488645130,-500.0,0.00022465,2]
[311884762,1705488645139,-500.0,0.00022465,2]
[311884764,1705488645148,-753.34,0.00022465,2]
[311884766,1705488645156,-1343.67,0.00022465,2]
[311884768,1705488645165,-500.0,0.00022465,2]
[311884770,1705488645174,-500.0,0.00022465,2]
[311884772,1705488645183,-500.0,0.00022465,2]
[311884774,1705488645192,-1253.31,0.00022465,2]
[311884776,1705488645202,-895.98,0.00022465,2]
[311884778,1705488645211,-500.0,0.00022465,2]
[311884780,1705488645220,-713.45,0.00022465,2]
[311884782,1705488645229,-1654.58,0.00022465,2]
[311884784,1705488645238,-500.0,0.00022465,2]
[311884786,1705488645247,-1552.32,0.00022465,2]
[311884788,1705488645255,-1219.24,0.00022465,2]
[311884790,1705488645264,-822.5,0.00022465,2]
[311884792,1705488645273,-12149.63905886,0.00022465,2]
[311884795,1705488645286,-4931.09094114,0.00022465,2]
[311884797,1705488645296,-500.0,0.00022465,2]
[311884799,1705488645305,-6667.02,0.00022465,2]
[311884801,1705488645313,-1610.51,0.00022465,2]
[311884803,1705488645322,-8982.81,0.00022465,2]
[311884805,1705488645331,-500.0,0.00022465,2]
[311884807,1705488645340,-620.93194379,0.00022466,2]
[311884809,1705488645349,-168.54285343,0.000225,2]
[311884811,1705488645358,-906.63926319,0.000226,2]
[311884813,1705488645368,-635.74007222,0.000226,2]
[311884815,1705488645376,-1825.67858503,0.000226,2]
[311884817,1705488645386,-15894.15433298,0.00022601,2]
[311884819,1705488645394,-151.0,0.00022601,2]
[311884820,1705488645403,-152.157588,0.00022602,2]
[311884823,1705488645412,-232.109022,0.00022602,2]
[311884825,1705488645421,-151.0,0.00022602,2]
[311884827,1705488645430,-378.091753,0.00022602,2]
[311884828,1705488645439,-378.091753,0.00022602,2]
[311884831,1705488645449,-378.091753,0.00022602,2]
[311884833,1705488645459,-378.091753,0.00022602,2]
[311884834,1705488645471,-584.167224,0.00022602,2]
[311884837,1705488645480,-584.167224,0.00022602,2]
[311884838,1705488645489,-504.74,0.00022602,2]
[311884841,1705488645499,-678.13,0.00022602,2]
[311884843,1705488645507,-530.42,0.00022602,2]
[311884844,1705488645516,-500.0,0.00022602,2]
[311884846,1705488645525,-500.0,0.00022602,2]
[311884848,1705488645534,-500.0,0.00022602,2]
[311884850,1705488645543,-1360.8,0.00022602,2]
[311884852,1705488645552,-932.46,0.00022602,2]
[311884854,1705488645560,-500.0,0.00022602,2]
[311884857,1705488645570,-500.0,0.00022602,2]
[311884859,1705488645579,-500.0,0.00022602,2]
[311884861,1705488645589,-500.0,0.00022602,2]
[311884863,1705488645598,-538.61,0.00022602,2]
[311884864,1705488645607,-803.33,0.00022602,2]
[311884867,1705488645618,-500.0,0.00022602,2]
[311884869,1705488645627,-1164.63,0.00022602,2]
[311884871,1705488645636,-500.0,0.00022602,2]
[311884873,1705488645645,-500.0,0.00022602,2]
[311884875,1705488645654,-808.54,0.00022602,2]
[311884877,1705488645666,-500.0,0.00022602,2]
[311884879,1705488645675,-588.73529456,0.00022602,2]
[311884881,1705488645683,-500.0,0.00022602,2]
[311884883,1705488645692,-2268.43,0.00022602,2]
[311884885,1705488645701,-1627.49,0.00022602,2]
[311884887,1705488645712,-3446.15,0.00022602,2]
[311884889,1705488645721,-500.0,0.00022602,2]
[311884891,1705488645730,-627.6,0.00022602,2]
[311884893,1705488645739,-281.3326687,0.00022602,2]
[311884895,1705488645748,-500.0,0.00022602,2]
[311884897,1705488645757,-500.0,0.00022602,2]
[311884899,1705488645766,-1820.61,0.00022602,2]
[311884901,1705488645775,-500.0,0.00022602,2]
[311884903,1705488645784,-825.48,0.00022602,2]
[311884905,1705488645792,-518.28,0.00022602,2]
[311884907,1705488645801,-500.0,0.00022602,2]
[311884917,1705488645867,-584.66,0.00022602,2]
[311884919,1705488645876,-3033.06,0.00022602,2]
[311884921,1705488645885,-500.0,0.00022602,2]
[311884923,1705488645894,-500.0,0.00022602,2]
[311884925,1705488645903,-500.0,0.00022602,2]
[311884927,1705488645913,-2888.11,0.00022602,2]
[311884929,1705488645923,-500.0,0.00022602,2]
[311884931,1705488645934,-752.21,0.00022602,2]
[311884932,1705488645945,-331.70357331,0.00022602,2]
[311884935,1705488645958,-500.0,0.00022602,2]
[311884937,1705488645968,-500.0,0.00022602,2]
[311884939,1705488645977,-500.0,0.00022602,2]
[311884940,1705488645986,-769.97,0.00022602,2]
[311884942,1705488645995,-796.42,0.00022602,2]
[311884944,1705488646004,-13026.52283899,0.00022602,2]
[311884960,1705488646114,-500.0,0.00022054,2]
[311884962,1705488646124,-500.0,0.00022191,2]
[311884964,1705488646133,-179.03118606,0.00022328,2]
[311884966,1705488646143,-320.96881394,0.00022328,2]
[311884968,1705488646152,-205.51801189,0.00022465,2]
[311884970,1705488646161,-1811.14638069,0.00022602,2]
[311884973,1705488646172,-573.37063095,0.00022602,2]
[311884986,1705488646301,-964.84710194,0.00022602,2]
[311884988,1705488646313,-3153.48480168,0.00022602,2]
[311886146,1705489014047,1467.5417489,0.00016436,2]
[311886147,1705489030035,1466.36857102,0.00016435,2]
[311886236,1705489832548,-154.98450155,0.00019474,2]
[311886238,1705489832558,-587.80263423,0.00019474,2]
[311886240,1705489832567,-154.98450155,0.00019475,2]
[311886241,1705489832576,-154.98450155,0.00019475,2]
[311886243,1705489832585,-861.81666274,0.00019475,2]
[311886245,1705489832594,-242.89725676,0.00019476,2]
[311886247,1705489832604,-126.52480614,0.00019476,2]
[311886250,1705489832615,-1079.84176297,0.00019476,2]
[311886252,1705489832626,-532.99856551,0.00019476,2]
[311886254,1705489832635,-175.07495536,0.00019477,2]
[311886256,1705489832644,-154.98450155,0.00019477,3]
[311886258,1705489832653,-329.24416506,0.00019477,2]
[311886260,1705489832662,-875.64011299,0.00019478,2]
[311886262,1705489832671,-8754.07446216,0.00019478,2]
[311886264,1705489832680,-272.32280016,0.00019479,2]
[311886266,1705489832689,-154.98450155,0.00019479,2]
[311886268,1705489832698,-154.21250895,0.00019506,2]
[311886270,1705489832707,-227.42795147,0.00019563,2]
[311886279,1705489832802,-5937.0,0.00019589,3]
[311886281,1705489832812,-11321.45,0.00019589,3]
[311886283,1705489832821,-61399.05916958,0.00019599,2]
[311886285,1705489832834,-1547.96811872,0.00019599,2]
[311886337,1705489839487,-272.32280016,0.00019473,2]
[311886338,1705489839497,-18197.15865851,0.00019599,2]
[311886339,1705489839506,-196.02016356,0.00019662,2]
[311886340,1705489839516,-156.78271178,0.00019663,2]
[311886341,1705489839525,-403.00506807,0.00019663,2]
[311886342,1705489839534,-1380.58447264,0.00019663,2]
[311886343,1705489839543,-13706.10600457,0.00019663,2]
[311886344,1705489839553,-155.19540513,0.00019663,2]
[311886345,1705489839562,-262.04802142,0.00019663,2]
[311886347,1705489839571,-1031.74114823,0.00019663,2]
[311886348,1705489839580,-154.98450155,0.00019663,2]
[311886349,1705489839590,-154.98450155,0.00019663,2]
[311886350,1705489839599,-13195.28309705,0.00019663,2]
[311886351,1705489839608,-616.12530775,0.00019664,2]
[311886352,1705489839617,-1222.43070975,0.00019664,2]
[311886353,1705489839626,-7404.22919202,0.00019721,2]
[311886354,1705489839637,-759.01187369,0.00019722,2]
[311886355,1705489839647,-976.30954437,0.00019722,2]
[311886356,1705489839656,-616.51710907,0.0002,2]
[311886357,1705489839665,-849.03657826,0.0002,2]
[311886358,1705489839674,-573.95326525,0.0002,2]
[311886359,1705489839684,-154.98450155,0.0002,2]
[311886360,1705489839693,-227.42795143,0.00020161,2]
[311886361,1705489839702,-150.0,0.00020365,2]
[311886362,1705489839711,-227.42795143,0.00020759,2]
[311886363,1705489839720,-327.18048,0.00021,2]
[311886364,1705489839729,-1815.68321298,0.00021,2]
[311886365,1705489839739,-153.0,0.00021278,2]
[311886366,1705489839748,-227.42795143,0.00021356,2]
[311886367,1705489839757,-153.0,0.00021378,2]
[311886368,1705489839766,-153.0,0.00021378,2]
[311886369,1705489839775,-200.0,0.00021431,7]
[311886370,1705489839784,-366.43795788,0.00021477,2]
[311886371,1705489839794,-526.06302176,0.00021914,2]
[311886372,1705489839803,-309.81420128,0.00021915,2]
[311886373,1705489839813,-309.9380124,0.00021915,2]
[311886374,1705489839822,-643.52434414,0.00021915,2]
[311886375,1705489839831,-2700.20522708,0.00021915,2]
[311886376,1705489839841,-14871.83510443,0.00021915,2]
[311886377,1705489839850,-294.87990361,0.00021915,2]
[311886378,1705489839859,-12748.42528674,0.00021915,2]
[311886379,1705489839868,-686.84015754,0.00021915,2]
[311886380,1705489839877,-193.28282234,0.00021915,2]
[311886381,1705489839887,-688.3625771,0.00021915,2]
[311886382,1705489839896,-239.23954931,0.00021915,2]
[311886383,1705489839905,-260.43027978,0.00021915,2]
[311886384,1705489839914,-2520.85498973,0.00021915,2]
[311886385,1705489839993,-491.10761571,0.00021915,2]
[311886387,1705489840002,-263.21986175,0.00021915,7]
[311886388,1705489840013,-155.27383661,0.00021916,2]
[311886389,1705489840023,-717.61930455,0.00021916,2]
[311886390,1705489840032,-400.35198,0.00021916,2]
[311886391,1705489840041,-166.65370388,0.00021916,2]
[311886392,1705489840050,-176.93681013,0.00021916,2]
[311886393,1705489840059,-19675.95998529,0.00021916,2]
[311886394,1705489840069,-1337.49022709,0.00021916,2]
[311886395,1705489840078,-1588.95351235,0.00021916,2]
[311886396,1705489840087,-253.62625705,0.00021916,2]
[311886397,1705489840097,-935.82213156,0.00021916,2]
[311886398,1705489840107,-500.0,0.00021916,2]
[311886399,1705489840116,-246.28917919,0.00021916,2]
[311886400,1705489840126,-330.6015298,0.00021917,2]
[311886401,1705489840136,-500.0,0.00021917,2]
[311886402,1705489840147,-500.0,0.00021917,2]
[311886403,1705489840158,-500.0,0.00021917,2]
[311886404,1705489840167,-500.0,0.00021917,2]
[311886405,1705489840176,-500.0,0.00021917,2]
[311886406,1705489840185,-500.0,0.00021917,2]
[311886407,1705489840195,-500.0,0.00021917,2]
[311886408,1705489840204,-500.0,0.00021917,2]
[311886409,1705489840213,-500.0,0.00021917,2]
[311886410,1705489840222,-500.0,0.00021917,2]
[311886411,1705489840231,-500.0,0.00021917,2]
[311886412,1705489840242,-500.0,0.00021917,2]
[311886413,1705489840251,-1356.24,0.00021917,2]
[311886414,1705489840260,-500.0,0.00021917,2]
[311886415,1705489840269,-500.0,0.00021917,2]
[311886416,1705489840278,-500.0,0.00021917,2]
[311886417,1705489840287,-1066.83,0.00021917,2]
[311886418,1705489840297,-500.0,0.00021917,2]
[311886420,1705489840306,-500.0,0.00021917,2]
[311886421,1705489840315,-500.0,0.00021917,2]
[311886422,1705489840326,-762.78,0.00021917,2]
[311886423,1705489840336,-500.0,0.00021917,2]
[311886424,1705489840346,-500.0,0.00021917,2]
[311886425,1705489840355,-511.57,0.00021917,2]
[311886426,1705489840364,-500.0,0.00021917,2]
[311886427,1705489840373,-500.0,0.00021917,2]
[311886428,1705489840382,-500.0,0.00021917,2]
[311886429,1705489840392,-500.0,0.00021917,2]
[311886430,1705489840401,-500.0,0.00021917,2]
[311886431,1705489840411,-500.0,0.00021917,2]
[311886432,1705489840421,-500.0,0.00021917,2]
[311886433,1705489840430,-500.0,0.00021917,2]
[311886434,1705489840439,-500.0,0.00021917,2]
[311886435,1705489840450,-500.0,0.00021917,2]
[311886436,1705489840472,-500.0,0.00021917,2]
[311886437,1705489840489,-673.72,0.00021917,2]
[311886438,1705489840506,-1252.07,0.00021917,2]
[311886439,1705489840524,-451.30321561,0.00021917,2]
[311886440,1705489840540,-500.0,0.00021917,2]
[311886441,1705489840555,-637.41949336,0.00021917,2]
[311886443,1705489840570,-500.0,0.00021917,2]
[311886444,1705489840588,-858.03,0.00021917,2]
[311886445,1705489840600,-500.0,0.00021917,2]
[311886446,1705489840619,-500.0,0.00021917,2]
[311886447,1705489840634,-328.04093624,0.00021917,2]
[311886448,1705489840649,-500.0,0.00021917,2]
[311886449,1705489840666,-500.0,0.00021917,2]
[311886450,1705489840684,-500.0,0.00021917,2]
[311886451,1705489840696,-500.0,0.00021917,2]
[311886452,1705489840709,-500.0,0.00021917,2]
[311886454,1705489840723,-739.22,0.00021917,2]
[311886455,1705489840737,-382.58669765,0.00021917,2]
[311886457,1705489840749,-1019.05,0.00021917,2]
[311886460,1705489840764,-500.0,0.00021917,2]
[311886462,1705489840779,-500.0,0.00021917,2]
[311886464,1705489840793,-500.0,0.00021917,2]
[311886466,1705489840807,-500.0,0.00021917,2]
[311886468,1705489840819,-500.0,0.00021917,2]
[311886470,1705489840832,-500.0,0.00021917,2]
[311886471,1705489840845,-500.0,0.00021917,2]
[311886472,1705489840859,-500.0,0.00021917,2]
[311886473,1705489840873,-500.0,0.00021917,2]
[311886475,1705489840885,-500.0,0.00021917,2]
[311886476,1705489840898,-500.0,0.00021917,2]
[311886477,1705489840912,-500.0,0.00021917,2]
[311886480,1705489840924,-500.0,0.00021917,2]
[311886482,1705489840937,-500.0,0.00021917,2]
[311886484,1705489840950,-500.0,0.00021917,2]
[311886485,1705489840963,-500.0,0.00021917,2]
[311886486,1705489840976,-500.0,0.00021917,2]
[311886487,1705489840990,-500.0,0.00021917,2]
[311886488,1705489841004,-500.0,0.00021917,2]
[311886489,1705489841016,-500.0,0.00021917,2]
[311886490,1705489841025,-500.0,0.00021917,2]
[311886491,1705489841035,-500.0,0.00021917,2]
[311886492,1705489841044,-502.57805441,0.00021917,2]
[311886493,1705489841054,-500.0,0.00021917,2]
[311886494,1705489841064,-500.0,0.00021917,2]
[311886495,1705489841073,-500.0,0.00021917,2]
[311886496,1705489841083,-500.0,0.00021917,2]
[311886498,1705489841092,-500.0,0.00021917,2]
[311886499,1705489841221,-2181.29,0.00021917,2]
[311886500,1705489841231,-261.31076788,0.00021917,2]
[311886501,1705489841240,-532.97085441,0.00021917,2]
[311886502,1705489841250,-786.72,0.00021917,2]
[311886503,1705489841259,-500.0,0.00021917,2]
[311886504,1705489841268,-434.48775725,0.00021917,2]
[311886505,1705489841278,-500.0,0.00021917,2]
[311886506,1705489841287,-500.0,0.00021917,2]
[311886507,1705489841296,-500.0,0.00021917,2]
[311886508,1705489841306,-500.0,0.00021917,2]
[311886509,1705489841315,-3158.97,0.00021917,2]
[311886510,1705489841324,-500.0,0.00021917,2]
[311886511,1705489841334,-500.0,0.00021917,2]
[311886512,1705489841345,-500.0,0.00021917,2]
[311886513,1705489841354,-500.0,0.00021917,2]
[311886514,1705489841363,-500.0,0.00021917,2]
[311886515,1705489841372,-500.0,0.00021917,2]
[311886516,1705489841382,-500.0,0.00021917,2]
[311886517,1705489841392,-500.0,0.00021917,2]
[311886518,1705489841401,-198.79879071,0.00021917,2]
[311886520,1705489841411,-500.0,0.00021917,2]
[311886521,1705489841421,-601.97581751,0.00021917,2]
[311886522,1705489841431,-500.0,0.00021917,2]
[311886523,1705489841440,-641.02,0.00021917,2]
[311886524,1705489841449,-500.0,0.00021917,2]
[311886525,1705489841458,-500.0,0.00021917,2]
[311886526,1705489841467,-500.0,0.00021917,2]
[311886527,1705489841476,-500.0,0.00021917,2]
[311886528,1705489841485,-1593.04,0.00021917,2]
[311886529,1705489841494,-500.0,0.00021917,2]
[311886530,1705489841503,-500.0,0.00021917,2]
[311886531,1705489841512,-500.0,0.00021917,2]
[311886532,1705489841521,-500.0,0.00021917,2]
[311886533,1705489841531,-500.0,0.00021917,2]
[311886534,1705489841539,-500.0,0.00021917,2]
[311886535,1705489841548,-500.0,0.00021917,2]
[311886536,1705489841557,-2777.68,0.00021917,2]
[311886537,1705489841565,-500.0,0.00021917,2]
[311886538,1705489841574,-500.0,0.00021917,2]
[311886539,1705489841584,-500.0,0.00021917,2]
[311886540,1705489841594,-500.0,0.00021917,2]
[311886541,1705489841608,-500.0,0.00021917,2]
[311886542,1705489841618,-500.0,0.00021917,2]
[311886543,1705489841627,-500.0,0.00021917,2]
[311886544,1705489841636,-500.0,0.00021917,2]
[311886545,1705489841646,-522.58503635,0.00021917,2]
[311886546,1705489841657,-500.0,0.00021917,2]
[311886547,1705489841666,-1702.02,0.00021917,2]
[311886548,1705489841675,-500.0,0.00021917,2]
[311886549,1705489841684,-500.0,0.00021917,2]
[311886550,1705489841693,-500.0,0.00021917,2]
[311886551,1705489841702,-500.0,0.00021917,2]
[311886552,1705489841711,-222.24610265,0.00021917,2]
[311886553,1705489841720,-2647.44,0.00021917,2]
[311886554,1705489841729,-500.0,0.00021917,2]
[311886555,1705489841738,-501.21701358,0.00021917,2]
[311886556,1705489841747,-500.0,0.00021917,2]
[311886557,1705489841756,-500.0,0.00021917,2]
[311886558,1705489841765,-500.0,0.00021917,2]
[311886559,1705489841773,-230.02217805,0.00021917,2]
[311886560,1705489841782,-767.82,0.00021917,2]
[311886561,1705489841791,-500.0,0.00021917,2]
[311886562,1705489841799,-502.14501577,0.00021917,2]
[311886563,1705489841809,-500.0,0.00021917,2]
[311886564,1705489841817,-658.19,0.00021917,2]
[311886565,1705489841826,-622.87,0.00021917,2]
[311886566,1705489841835,-500.0,0.00021917,2]
[311886567,1705489841844,-506.04070361,0.00021917,2]
[311886568,1705489841852,-500.0,0.00021917,2]
[311886569,1705489841861,-500.0,0.00021917,2]
[311886570,1705489841870,-500.0,0.00021917,2]
[311886571,1705489841879,-500.0,0.00021917,2]
[311886572,1705489841887,-500.0,0.00021917,2]
[311886573,1705489841896,-500.0,0.00021917,2]
[311886574,1705489841905,-500.0,0.00021917,2]
[311886575,1705489841914,-500.0,0.00021917,2]
[311886576,1705489841923,-500.0,0.00021917,2]
[311886577,1705489841931,-28136.45,0.00021917,2]
[311886578,1705489841940,-500.0,0.00021917,2]
[311886579,1705489841949,-500.0,0.00021917,2]
[311886580,1705489841958,-503.93,0.00021917,2]
[311886581,1705489841967,-15092.0,0.00021917,2]
[311886582,1705489841976,-806.43,0.00021917,2]
[311886583,1705489841985,-500.0,0.00021917,2]
[311886584,1705489841995,-502.96184779,0.00021917,2]
[311886585,1705489842004,-5561.3,0.00021917,2]
[311886586,1705489842014,-2234.04,0.00021917,2]
[311886587,1705489842022,-2590.21,0.00021917,2]
[311886588,1705489842031,-1000.0,0.00021917,2]
[311886589,1705489842040,-500.0,0.00021917,2]
[311886590,1705489842049,-500.0,0.00021917,5]
[311886591,1705489842059,-500.0,0.00021917,2]
[311886592,1705489842068,-500.0,0.00021917,2]
[311886593,1705489842078,-2709.79,0.00021917,2]
[311886594,1705489842087,-501.3034891,0.00021917,2]
[311886595,1705489842097,-500.0,0.00021917,2]
[311886596,1705489842106,-819.23,0.00021917,2]
[311886598,1705489842116,-174.74456145,0.00021917,2]
[311886600,1705489842125,-500.0,0.00021917,2]
[311886602,1705489842134,-500.0,0.00021917,2]
[311886604,1705489842144,-500.0,0.00021917,2]
[311886606,1705489842153,-500.0,0.00021917,2]
[311886608,1705489842162,-500.0,0.00021917,2]
[311886610,1705489842171,-500.0,0.00021917,2]
[311886612,1705489842180,-500.0,0.00021917,2]
[311886614,1705489842189,-500.0,0.00021917,2]
[311886616,1705489842199,-500.0,0.00021917,2]
[311886618,1705489842207,-500.0,0.00021917,2]
[311886620,1705489842217,-500.0,0.00021917,2]
[311886622,1705489842227,-380.81535745,0.00021917,2]
[311886624,1705489842236,-500.0,0.00021917,2]
[311886626,1705489842246,-475.86267501,0.00021917,2]
[311886628,1705489842255,-500.0,0.00021917,2]
[311886630,1705489842264,-551.21,0.00021917,2]
[311886632,1705489842273,-500.0,0.00021917,2]
[311886633,1705489842282,-6578.37,0.00021917,2]
[311886636,1705489842292,-1266.74,0.00021917,2]
[311886637,1705489842301,-500.0,0.00021917,2]
[311886640,1705489842312,-500.0,0.00021917,2]
[311886642,1705489842322,-1664.12,0.00021917,2]
[311886643,1705489842331,-1462.7,0.00021917,2]
[311886646,1705489842342,-500.0,0.00021917,2]
[311886647,1705489842351,-500.0,0.00021917,2]
[311886649,1705489842361,-547.15371215,0.00021917,2]
[311886652,1705489842371,-500.0,0.00021917,2]
[311886654,1705489842381,-236.06186457,0.00021917,2]
[311886656,1705489842390,-1700.21,0.00021917,2]
[311886658,1705489842399,-683.72,0.00021917,2]
[311886660,1705489842408,-500.0,0.00021917,2]
[311886662,1705489842419,-860.28,0.00021917,2]
[311886664,1705489842429,-500.0,0.00021917,2]
[311886666,1705489842438,-17111.67,0.00021917,2]
[311886668,1705489842446,-500.0,0.00021917,2]
[311886670,1705489842455,-753.96,0.00021917,2]
[311886672,1705489842464,-500.0,0.00021917,2]
[311886674,1705489842473,-6790.1,0.00021917,2]
[311886676,1705489842482,-557.81864135,0.00021917,2]
[311886678,1705489842491,-500.0,0.00021917,2]
[311886680,1705489842500,-500.0,0.00021917,2]
[311886682,1705489842509,-500.0,0.00021917,2]
[311886684,1705489842518,-500.0,0.00021917,2]
[311886686,1705489842528,-500.0,0.00021917,2]
[311886688,1705489842538,-500.0,0.00021917,2]
[311886690,1705489842547,-166.666666,0.00021918,2]
[311886692,1705489842556,-198.957615,0.00021918,2]
[311886694,1705489842565,-9111.67082876,0.00021945,2]
[311886696,1705489842574,-227.42795143,0.00021954,2]
[311886698,1705489842583,-425.53656097,0.00022,2]
[311886700,1705489842593,-4001.45164275,0.00022,2]
[311886702,1705489842601,-397.6273492,0.00022,2]
[311886704,1705489842610,-374.76193364,0.00022,2]
[311886706,1705489842620,-157.08440165,0.00022,2]
[311886708,1705489842628,-293.1976279,0.00022,4]
[311886710,1705489842638,-500.0,0.00022053,2]
[311886712,1705489842647,-500.0,0.00022053,2]
[311886714,1705489842656,-500.0,0.00022053,2]
[311886716,1705489842665,-264.664227,0.00022054,2]
[311886718,1705489842675,-264.664227,0.00022054,2]
[311886720,1705489842684,-500.0,0.00022054,2]
[311886722,1705489842693,-500.0,0.00022054,2]
[311886724,1705489842702,-500.0,0.00022054,2]
[311886727,1705489842712,-500.0,0.00022054,2]
[311886729,1705489842721,-500.0,0.00022054,2]
[311886731,1705489842730,-500.0,0.00022054,2]
[311886733,1705489842739,-500.0,0.00022054,2]